bitfinex/quotes_BTCUSD_20250718
["timestamp","ask_amount","ask_price","bid_price","bid_amount"]
[1752866360323,0.22197264,117620.0,117610.0,0.84220707]
[1752866360743,0.22197264,117620.0,117610.0,0.83370461]
[1752866361263,0.22197264,117620.0,117610.0,0.83164461]
[1752866361472,0.22197264,117620.0,117610.0,0.84014707]
[1752866361689,0.0105013,117620.0,117610.0,0.96416124]
[1752866361863,0.01900274,117620.0,117610.0,0.96416124]
[1752866362070,0.0105013,117620.0,117610.0,0.96416124]
[1752866362281,0.0105013,117620.0,117610.0,0.94806124]
[1752866362412,0.0105013,117620.0,117610.0,0.86230162]
[1752866362622,0.002,117620.0,117610.0,0.86230162]
[1752866363308,0.01050137,117620.0,117610.0,0.86230162]
[1752866363690,0.01900289,117620.0,117610.0,0.86230162]
[1752866364401,0.01050137,117620.0,117610.0,0.86230162]
[1752866364857,0.01900281,117620.0,117610.0,0.86230162]
[1752866365120,0.21577394,117620.0,117610.0,0.84529707]
[1752866365362,0.23197394,117620.0,117610.0,0.85379945]
[1752866365587,0.23197394,117620.0,117610.0,0.86230176]
[1752866365813,0.02670144,117620.0,117610.0,0.87080393]
[1752866366229,0.01050144,117620.0,117610.0,0.87080393]
[1752866366446,0.002,117620.0,117610.0,0.98916355]
[1752866366672,0.002,117620.0,117610.0,1.41467383]
[1752866367579,0.002,117620.0,117610.0,1.48279082]
[1752866367812,0.002,117620.0,117610.0,1.96976525]
[1752866368012,0.002,117620.0,117610.0,1.9843061]
[1752866368669,0.01739718,117660.0,117650.0,0.22148832]
[1752866368848,0.01739718,117660.0,117650.0,0.85052275]
[1752866369084,0.02589595,117660.0,117650.0,0.85361275]
[1752866369265,0.01739718,117660.0,117650.0,0.85361275]
[1752866369444,0.02589595,117660.0,117650.0,0.85361275]
[1752866369858,0.02904584,117660.0,117650.0,0.36663832]
[1752866370191,0.20202786,117660.0,117650.0,0.82811427]
[1752866370496,0.21782786,117660.0,117650.0,0.84511347]
[1752866370650,0.21782786,117660.0,117650.0,0.85361289]
[1752866370874,0.2093288,117660.0,117650.0,0.86211217]
[1752866371074,0.04784642,117660.0,117650.0,0.86211217]
[1752866371519,0.03934721,117660.0,117650.0,0.86211217]
[1752866371977,0.03204613,117660.0,117650.0,0.86211217]
[1752866372391,0.04054512,117660.0,117650.0,0.86211217]
[1752866372589,0.03204613,117660.0,117650.0,0.86211217]
[1752866372803,0.02354721,117660.0,117650.0,0.86211217]
[1752866373001,0.02354721,117660.0,117650.0,0.94787179]
[1752866373312,0.03204591,117660.0,117650.0,0.86211217]
[1752866373518,0.04774591,117660.0,117650.0,0.86211217]
[1752866373863,0.0562449,117660.0,117650.0,0.86211217]
[1752866374068,0.0562449,117660.0,117650.0,0.85361289]
[1752866374069,0.2281862,117660.0,117650.0,0.85361289]
[1752866374686,0.04774584,117660.0,117650.0,0.86211217]
[1752866374891,0.03204577,117660.0,117650.0,0.86211217]
[1752866375104,0.03204577,117660.0,117650.0,0.89949668]
[1752866375508,0.00654989,117660.0,117650.0,0.86211217]
[1752866375706,0.01504844,117660.0,117650.0,0.87871217]
[1752866375929,0.00654989,117660.0,117650.0,0.87871217]
[1752866376290,0.00654989,117660.0,117650.0,0.89401217]
[1752866376819,0.00654989,117660.0,117650.0,0.40703774]
[1752866377175,0.10059167,117680.0,117670.0,0.17846519]
[1752866377386,0.10305121,117680.0,117670.0,0.32680346]
[1752866377807,0.10305121,117680.0,117670.0,0.30980685]
[1752866378023,0.10305121,117680.0,117670.0,0.31830519]
[1752866378234,0.10305121,117680.0,117670.0,0.33530151]
[1752866378461,0.01629954,117680.0,117670.0,0.93823893]
[1752866378653,0.03329369,117680.0,117670.0,0.95423893]
[1752866379040,0.04679102,117680.0,117670.0,0.95423893]
[1752866379269,0.03829369,117680.0,117670.0,0.95423893]
[1752866379624,0.04579109,117680.0,117670.0,0.95423893]
[1752866379805,0.2187435,117680.0,117670.0,0.23407755]
[1752866380022,0.216704,117680.0,117670.0,0.85335017]
[1752866380229,0.219704,117680.0,117670.0,0.86184829]
[1752866380650,0.21120682,117680.0,117670.0,0.35783755]
[1752866380845,0.20270942,117680.0,117670.0,0.34084094]
[1752866381051,0.20270942,117680.0,117670.0,0.34619921]
[1752866381284,0.20270942,117680.0,117670.0,0.3522174]
[1752866381483,0.20270942,117680.0,117670.0,0.35235296]
[1752866381688,0.20270942,117680.0,117670.0,0.38622031]
[1752866381918,0.20270942,117680.0,117670.0,0.37772212]
[1752866382132,0.21340195,117680.0,117670.0,0.16575409]
[1752866382338,0.70037638,117680.0,117670.0,0.16575409]
[1752866382744,0.21340195,117680.0,117670.0,0.16575409]
[1752866383397,0.21090195,117680.0,117670.0,0.16575409]
[1752866384282,0.02175954,117680.0,117670.0,0.33572094]
[1752866384484,0.02175954,117680.0,117670.0,0.90468232]
[1752866384485,0.00649954,117680.0,117670.0,0.90468232]
[1752866384695,0.00649954,117680.0,117670.0,1.51847132]
[1752866384907,0.00649954,117680.0,117670.0,1.5273331]
[1752866385331,0.00349954,117680.0,117670.0,1.5273331]
[1752866385555,0.00049954,117680.0,117670.0,1.8673331]
[1752866385764,0.00149954,117680.0,117670.0,1.8673331]
[1752866385951,0.00249954,117680.0,117670.0,1.38035867]
[1752866386343,0.00149954,117680.0,117670.0,1.38035867]
[1752866387366,0.00049954,117680.0,117670.0,1.38035867]
[1752866387588,0.00049954,117680.0,117670.0,1.38135867]
[1752866387790,0.00049954,117680.0,117670.0,1.38335867]
[1752866396491,0.00049954,117680.0,117670.0,1.24359867]
[1752866396697,0.00049954,117680.0,117670.0,1.38311867]
[1752866398894,0.00049954,117680.0,117670.0,1.8700931]
[1752866399936,0.00049954,117680.0,117670.0,1.8700531]
[1752866400762,0.00049954,117680.0,117670.0,1.38307867]
[1752866400972,0.00049954,117680.0,117670.0,1.24359867]
[1752866401152,0.00049954,117680.0,117670.0,1.38307867]
[1752866402729,0.00049954,117680.0,117670.0,1.8700531]
[1752866403359,1e-08,117680.0,117670.0,1.88459395]
[1752866405048,1e-08,117680.0,117670.0,1.88599495]
[1752866405479,1e-08,117680.0,117670.0,1.88899495]
[1752866406048,1e-08,117680.0,117670.0,1.88799495]
[1752866409076,0.0004,117690.0,117680.0,0.57597933]
[1752866409285,0.0004,117690.0,117680.0,2.09833809]
[1752866409549,0.0004,117690.0,117680.0,1.96224809]
[1752866409800,0.0004,117690.0,117680.0,1.12761923]
[1752866410018,0.0004,117690.0,117680.0,2.10156809]
[1752866410674,0.0004,117690.0,117680.0,2.10256809]
[1752866410894,0.0004,117690.0,117680.0,2.10356809]
[1752866411315,0.0004,117690.0,117680.0,2.10352809]
[1752866412172,0.0004,117690.0,117680.0,1.96424809]
[1752866412400,0.0004,117690.0,117680.0,2.10352809]
[1752866413447,0.0004,117690.0,117680.0,2.10348809]
[1752866414712,0.0004,117690.0,117680.0,0.99029923]
[1752866414880,0.0004,117690.0,117680.0,2.10348809]
[1752866416032,0.0004,117690.0,117680.0,1.12953923]
[1752866416192,0.0004,117690.0,117680.0,2.10348809]
[1752866418068,0.0004,117690.0,117680.0,2.10340809]
[1752866418447,1e-08,117690.0,117680.0,2.15340809]
[1752866418655,1e-08,117690.0,117680.0,2.64038252]
[1752866419103,1e-08,117690.0,117680.0,2.15340809]
[1752866419317,0.0002,117710.0,117700.0,1.58139498]
[1752866419515,0.00032731,117710.0,117700.0,1.84930353]
[1752866419717,0.00032731,117710.0,117700.0,1.85253353]
[1752866420713,0.008634,117720.0,117710.0,0.19539457]
[1752866420942,0.008634,117720.0,117710.0,1.7961578]
[1752866421169,0.00840503,117720.0,117710.0,1.7961578]
[1752866421414,0.00840503,117720.0,117710.0,1.89645827]
[1752866422944,0.00840503,117720.0,117710.0,1.75833827]
[1752866423161,0.00840503,117720.0,117710.0,0.89342856]
[1752866423428,0.00840503,117720.0,117710.0,1.38040299]
[1752866424332,0.00840503,117720.0,117710.0,1.86737742]
[1752866424541,0.00840503,117720.0,117710.0,2.07129742]
[1752866425001,0.00840503,117720.0,117710.0,1.93221742]
[1752866425217,0.00940503,117720.0,117710.0,2.07129742]
[1752866430215,0.00940503,117720.0,117710.0,1.42994299]
[1752866430425,0.04611503,117720.0,117710.0,0.99085894]
[1752866430628,0.04611503,117720.0,117710.0,1.47783337]
[1752866430837,0.04611503,117720.0,117710.0,0.99085894]
[1752866431047,0.04611503,117720.0,117710.0,1.47783337]
[1752866431450,0.04611503,117720.0,117710.0,1.13487337]
[1752866431655,0.04611503,117720.0,117710.0,1.27387337]
[1752866432064,0.04315503,117720.0,117710.0,1.27387337]
[1752866432940,0.05253022,117720.0,117710.0,0.64789894]
[1752866433151,0.04620503,117720.0,117710.0,1.27387337]
[1752866434424,0.04620503,117720.0,117710.0,0.76090485]
[1752866434648,0.04620503,117720.0,117710.0,1.27387337]
[1752866435733,0.04315503,117720.0,117710.0,1.27387337]
[1752866436052,0.04315503,117720.0,117710.0,1.29929655]
[1752866436485,0.04620503,117720.0,117710.0,1.29929655]
[1752866437766,0.04620503,117720.0,117710.0,1.21378627]
[1752866438644,0.04620503,117720.0,117710.0,1.07478627]
[1752866438870,0.72855766,117720.0,117710.0,0.001]
[1752866439083,0.23308893,117720.0,117710.0,0.16595409]
[1752866439300,0.07168785,117720.0,117710.0,0.51396852]
[1752866439514,0.08018243,117720.0,117710.0,0.16595409]
[1752866439785,0.24158251,117720.0,117710.0,0.65192852]
[1752866439993,0.23208871,117720.0,117710.0,0.83033299]
[1752866440201,0.23208871,117720.0,117710.0,0.84732309]
[1752866440202,0.05369925,117720.0,117710.0,0.84732309]
[1752866440412,0.02705503,117720.0,117710.0,1.20042752]
[1752866440619,0.02490503,117720.0,117710.0,1.4248978]
[1752866440835,0.02490503,117720.0,117710.0,0.93792337]
[1752866442079,0.02691503,117720.0,117710.0,0.93792337]
[1752866442318,0.02691503,117720.0,117710.0,1.36368299]
[1752866442518,0.03540911,117720.0,117710.0,1.27792337]
[1752866442730,0.06889763,117720.0,117710.0,1.27283337]
[1752866443029,0.06889756,117720.0,117710.0,1.27283337]
[1752866443443,0.077392,117720.0,117710.0,1.27283337]
[1752866443658,0.06889756,117720.0,117710.0,1.27283337]
[1752866444138,0.08588658,117720.0,117710.0,1.27283337]
[1752866444345,0.08893658,117720.0,117710.0,1.27283337]
[1752866444594,0.02691503,117720.0,117710.0,1.27498337]
[1752866444820,0.02691503,117720.0,117710.0,1.27792337]
[1752866445270,0.02691503,117720.0,117710.0,1.13896337]
[1752866445494,0.02691503,117720.0,117710.0,1.27792337]
[1752866446386,0.02691503,117720.0,117710.0,1.27788337]
[1752866447227,0.02490503,117720.0,117710.0,1.27788337]
[1752866448130,0.02691503,117720.0,117710.0,1.27788337]
[1752866449454,0.02238503,117720.0,117710.0,1.37984299]
[1752866450731,0.02238503,117720.0,117710.0,1.86681742]
[1752866450945,0.00688503,117720.0,117710.0,1.86681742]
[1752866453697,0.00688503,117720.0,117710.0,1.7810578]
[1752866455854,0.00688503,117720.0,117710.0,1.29408337]
[1752866456067,0.02258503,117720.0,117710.0,1.29408337]
[1752866456276,0.02258503,117720.0,117710.0,1.27788337]
[1752866456493,0.02459503,117720.0,117710.0,1.13896337]
[1752866456704,0.02459503,117720.0,117710.0,1.27271337]
[1752866456705,0.04039503,117720.0,117710.0,1.27271337]
[1752866456917,0.04039503,117720.0,117710.0,1.13387337]
[1752866457130,0.02459503,117720.0,117710.0,1.27780337]
[1752866457975,0.02459503,117720.0,117710.0,1.30835253]
[1752866459738,0.03308911,117720.0,117710.0,1.27780337]
[1752866459960,0.21303969,117720.0,117710.0,0.16990909]
[1752866460168,0.21303969,117720.0,117710.0,0.84720317]
[1752866460169,0.07712308,117720.0,117710.0,0.84720317]
[1752866460383,0.06862799,117720.0,117710.0,0.85569811]
[1752866460599,0.05163911,117720.0,117710.0,0.85569811]
[1752866461069,0.06013333,117720.0,117710.0,0.85569811]
[1752866461282,0.02459503,117720.0,117710.0,0.94145773]
[1752866461496,0.02459503,117720.0,117710.0,0.94629839]
[1752866461710,0.02459503,117720.0,117710.0,0.45932396]
[1752866461921,0.02459503,117720.0,117710.0,0.94629839]
[1752866462345,0.02459503,117720.0,117710.0,0.94334839]
[1752866462994,0.02459503,117720.0,117710.0,0.94120839]
[1752866463205,0.02459503,117720.0,117710.0,0.80236839]
[1752866463418,0.02459503,117720.0,117710.0,0.94116839]
[1752866463834,0.06895799,117720.0,117710.0,0.85565811]
[1752866464052,0.06046348,117720.0,117710.0,0.85565811]
[1752866464243,0.06895785,117720.0,117710.0,0.85565811]
[1752866465029,0.07745236,117720.0,117710.0,0.85565811]
[1752866465257,0.06046348,117720.0,117710.0,0.85565811]
[1752866465457,0.04039503,117720.0,117710.0,0.85565811]
[1752866465655,0.00889503,117720.0,117710.0,1.04456801]
[1752866465864,0.00688503,117720.0,117710.0,1.04751801]
[1752866466468,0.00688503,117720.0,117710.0,1.78873282]
[1752866466838,0.00688503,117720.0,117710.0,1.80523282]
[1752866468736,0.00688503,117720.0,117710.0,1.78873282]
[1752866469150,0.00688503,117720.0,117710.0,1.78869282]
[1752866469555,0.04027503,117720.0,117710.0,0.65539396]
[1752866469699,0.04876918,117720.0,117710.0,1.28112839]
[1752866470160,0.06575784,117720.0,117710.0,1.28112839]
[1752866470425,0.05905242,117720.0,117710.0,1.28112839]
[1752866470610,0.05055784,117720.0,117710.0,1.28112839]
[1752866471018,0.05055777,117720.0,117710.0,1.28112839]
[1752866471154,0.24464759,117720.0,117710.0,1.26413858]
[1752866471361,0.24464759,117720.0,117700.0,0.2463042]
[1752866471362,0.04079509,117710.0,117700.0,0.2463042]
[1752866471577,0.02718494,117710.0,117700.0,1.29750891]
[1752866471801,0.01869,117710.0,117700.0,1.29964891]
[1752866472006,0.02718487,117710.0,117700.0,1.30259891]
[1752866472262,0.0166,117710.0,117700.0,1.30259891]
[1752866472472,0.03439,117710.0,117700.0,1.15878891]
[1752866472676,0.05987505,117710.0,117700.0,1.29750891]
[1752866472882,0.05987498,117710.0,117700.0,1.29850891]
[1752866473180,0.0271848,117710.0,117700.0,1.38526853]
[1752866473408,0.01869,117710.0,117700.0,1.38740853]
[1752866473611,0.0166,117710.0,117700.0,1.39035853]
[1752866474072,0.02148503,117720.0,117710.0,0.22138866]
[1752866474303,0.00588503,117720.0,117710.0,1.4376078]
[1752866474520,1e-08,117720.0,117710.0,1.85690887]
[1752866474733,1e-08,117720.0,117710.0,1.87260887]
[1752866476766,1e-08,117720.0,117710.0,1.88714972]
[1752866477177,1e-08,117720.0,117710.0,1.38645055]
[1752866478506,0.0158,117760.0,117750.0,0.2213223]
[1752866478723,0.01594978,117760.0,117750.0,0.47148337]
[1752866478932,0.03471978,117760.0,117750.0,0.31367903]
[1752866479145,0.04321097,117760.0,117750.0,0.45400493]
[1752866479341,0.05170238,117760.0,117750.0,0.92725462]
[1752866479818,0.05370231,117760.0,117750.0,0.92725462]
[1752866480024,0.24052295,117760.0,117750.0,0.67758758]
[1752866480226,0.24052295,117760.0,117750.0,0.36849443]
[1752866480227,0.03671978,117760.0,117750.0,0.36849443]
[1752866480446,0.04313105,117760.0,117750.0,0.36849443]
[1752866480695,0.05162246,117760.0,117750.0,0.85050478]
[1752866480877,0.05162246,117760.0,117750.0,0.9362644]
[1752866481298,0.06011401,117760.0,117750.0,0.9362644]
[1752866481515,0.04313105,117760.0,117750.0,0.9362644]
[1752866481719,0.03463978,117760.0,117750.0,0.9362644]
[1752866481927,0.01903978,117760.0,117750.0,0.9384044]
[1752866482724,0.02753105,117760.0,117750.0,0.85264478]
[1752866482922,0.02753097,117760.0,117750.0,0.85264478]
[1752866483134,0.02753097,117760.0,117750.0,0.85050478]
[1752866483509,0.01903978,117760.0,117750.0,0.85050478]
[1752866483945,0.02753112,117760.0,117750.0,0.85050478]
[1752866484171,0.01903978,117760.0,117750.0,0.9362644]
[1752866484646,0.02753105,117760.0,117750.0,0.9362644]
[1752866485074,0.03602246,117760.0,117750.0,0.46301471]
[1752866485290,0.03602246,117760.0,117750.0,0.9362644]
[1752866485503,0.02753105,117760.0,117750.0,0.9362644]
[1752866485729,0.03602253,117760.0,117750.0,0.9362644]
[1752866485961,0.03602253,117760.0,117750.0,0.46301471]
[1752866486169,0.01903978,117760.0,117750.0,0.85050478]
[1752866486386,0.02753105,117760.0,117750.0,0.85050478]
[1752866486608,0.06021394,117760.0,117750.0,0.37725509]
[1752866486839,0.06021394,117760.0,117750.0,0.85050478]
[1752866487256,0.06021387,117760.0,117750.0,0.85050478]
[1752866488590,0.01903978,117760.0,117750.0,0.85050478]
[1752866489087,0.04393105,117760.0,117750.0,0.70306427]
[1752866489300,0.04701105,117760.0,117750.0,0.84170427]
[1752866489514,0.05242239,117760.0,117750.0,0.84170427]
[1752866489704,0.02753105,117760.0,117750.0,0.84170427]
[1752866490166,0.01903978,117760.0,117750.0,0.79096389]
[1752866490385,0.04451423,117760.0,117750.0,0.83535199]
[1752866490602,0.04451423,117760.0,117750.0,0.83321199]
[1752866490824,0.23864295,117760.0,117750.0,0.63788378]
[1752866491065,0.2248502,117760.0,117750.0,0.02599409]
[1752866491285,0.2248502,117760.0,117750.0,0.16463409]
[1752866492197,0.2248502,117760.0,117750.0,0.02599409]
[1752866492413,0.2248502,117760.0,117750.0,0.16463409]
[1752866495906,0.2248502,117760.0,117750.0,0.16459409]
[1752866497024,0.2248502,117760.0,117750.0,0.34293803]
[1752866497248,0.2216602,117760.0,117750.0,0.83317227]
[1752866497516,0.02753119,117760.0,117750.0,0.92939395]
[1752866497735,0.00314978,117760.0,117750.0,0.94795395]
[1752866498187,0.00314978,117760.0,117750.0,1.04886423]
[1752866498410,0.00314978,117760.0,117750.0,1.52211392]
[1752866498681,0.00314978,117760.0,117750.0,1.86211392]
[1752866499122,0.00314978,117760.0,117750.0,0.91561454]
[1752866499338,0.00314978,117760.0,117750.0,1.88429646]
[1752866499968,0.00214978,117760.0,117750.0,1.88429646]
[1752866500386,0.00014978,117760.0,117750.0,1.88429646]
[1752866500830,0.00014978,117760.0,117750.0,1.88529646]
[1752866501447,0.04099605,117780.0,117770.0,0.19529503]
[1752866501656,0.02401576,117780.0,117770.0,0.82020599]
[1752866501865,0.02401576,117780.0,117770.0,0.82316599]
[1752866502073,0.02401576,117780.0,117770.0,0.33882503]
[1752866502278,0.03250587,117780.0,117770.0,0.82316599]
[1752866502501,0.02401576,117780.0,117770.0,0.82316599]
[1752866502710,0.01697987,117780.0,117770.0,0.90892561]
[1752866502938,0.18639478,117790.0,117780.0,0.18678855]
[1752866503155,0.18846478,117790.0,117780.0,0.67112966]
[1752866503382,0.18846478,117790.0,117780.0,0.81821984]
[1752866503599,0.18846478,117790.0,117780.0,0.82670995]
[1752866503878,0.18846478,117790.0,117780.0,0.65414907]
[1752866504099,0.18846478,117790.0,117780.0,0.62294096]
[1752866504536,0.19146478,117790.0,117780.0,0.62294096]
[1752866504755,0.19346478,117790.0,117780.0,0.62294096]
[1752866505237,0.17829837,117780.0,117770.0,0.27552389]
[1752866505462,0.17829837,117780.0,117770.0,0.81463523]
[1752866505672,0.17829837,117780.0,117770.0,0.33878496]
[1752866505897,0.01698044,117780.0,117770.0,0.83161654]
[1752866506118,0.02547077,117780.0,117770.0,0.83161654]
[1752866506331,0.19527888,117780.0,117770.0,0.84025454]
[1752866506543,0.01698022,117780.0,117770.0,0.92601416]
[1752866506762,0.01697986,117780.0,117770.0,0.96860825]
[1752866506980,0.03496023,117780.0,117770.0,0.96860825]
[1752866507196,0.02846997,117780.0,117770.0,0.96860825]
[1752866507399,0.0284699,117780.0,117770.0,0.96860825]
[1752866507618,0.01997979,117780.0,117770.0,0.96860825]
[1752866507822,0.03696009,117780.0,117770.0,0.96860825]
[1752866508026,0.03696009,117780.0,117770.0,0.88284863]
[1752866508231,0.02846997,117780.0,117770.0,0.88284863]
[1752866508432,0.03696023,117780.0,117770.0,0.87421063]
[1752866508777,0.20676834,117780.0,117770.0,0.25130967]
[1752866508990,0.03696023,117780.0,117770.0,0.87421063]
[1752866509208,0.01997979,117780.0,117770.0,0.87421063]
[1752866509618,0.03695994,117780.0,117770.0,0.87421063]
[1752866510277,0.01997979,117780.0,117770.0,0.87421063]
[1752866510730,0.04545042,117780.0,117770.0,0.71056001]
[1752866510941,0.03696009,117780.0,117770.0,0.85761063]
[1752866511155,0.03903009,117780.0,117770.0,0.85761063]
[1752866511544,0.03053983,117780.0,117770.0,0.85761063]
[1752866511755,0.01355982,117780.0,117770.0,0.85761063]
[1752866511967,0.003,117780.0,117770.0,0.95857025]
[1752866512177,0.01148975,117780.0,117770.0,0.95857025]
[1752866512592,0.01997972,117780.0,117770.0,0.95857025]
[1752866513014,0.01148975,117780.0,117770.0,0.95857025]
[1752866513224,0.01997957,117780.0,117770.0,0.95857025]
[1752866513435,0.02846954,117780.0,117770.0,0.95857025]
[1752866513888,0.01997957,117780.0,117770.0,0.95857025]
[1752866514303,0.01997957,117780.0,117770.0,0.47422929]
[1752866514521,0.01997957,117780.0,117770.0,0.95857025]
[1752866515421,0.02846947,117780.0,117770.0,0.95857025]
[1752866515639,0.01997957,117780.0,117770.0,0.95857025]
[1752866515859,0.003,117780.0,117770.0,0.95857025]
[1752866516083,0.01148975,117780.0,117770.0,0.87281063]
[1752866516537,0.02846961,117780.0,117770.0,0.87281063]
[1752866516767,0.02846954,117780.0,117770.0,0.87281063]
[1752866516990,0.01997957,117780.0,117770.0,0.87281063]
[1752866517211,0.02846947,117780.0,117770.0,0.87281063]
[1752866517432,0.01505957,117780.0,117770.0,0.89016593]
[1752866517869,0.02354947,117780.0,117770.0,0.89016593]
[1752866518104,0.03203958,117780.0,117770.0,0.89016593]
[1752866518321,0.03203951,117780.0,117770.0,0.89016593]
[1752866518540,0.02354947,117780.0,117770.0,0.40582497]
[1752866518756,0.02354947,117780.0,117770.0,0.89016593]
[1752866518994,0.0165,117790.0,117780.0,0.22127254]
[1752866519227,0.01999,117800.0,117790.0,0.23725597]
[1752866519228,0.0002,117800.0,117790.0,0.23725597]
[1752866519467,0.00069906,117800.0,117790.0,1.43489817]
[1752866519692,0.00069906,117800.0,117790.0,0.96695721]
[1752866520381,0.00069906,117800.0,117790.0,1.30695721]
[1752866520610,0.00069906,117800.0,117790.0,1.36595298]
[1752866520834,0.00069906,117800.0,117790.0,0.88161202]
[1752866521058,0.00069906,117800.0,117790.0,1.36595298]
[1752866521748,0.00069906,117800.0,117790.0,1.41595298]
[1752866521975,0.00069906,117800.0,117790.0,1.90029394]
[1752866522666,0.00069906,117800.0,117790.0,1.76177394]
[1752866522899,0.00169906,117800.0,117790.0,1.90041394]
[1752866523153,0.00169906,117800.0,117790.0,0.93173202]
[1752866523387,0.00169906,117800.0,117790.0,0.79309202]
[1752866523628,0.00169906,117800.0,117790.0,1.84149817]
[1752866523872,0.00169906,117800.0,117790.0,1.35727721]
[1752866524350,0.00169906,117800.0,117790.0,0.82393625]
[1752866524607,0.00169906,117800.0,117790.0,1.79261817]
[1752866524824,0.00169906,117800.0,117790.0,1.8629808]
[1752866524825,0.00069906,117800.0,117790.0,1.8629808]
[1752866525094,0.00069906,117800.0,117790.0,1.79361817]
[1752866525327,0.00069906,117800.0,117790.0,1.30927721]
[1752866525758,0.00069906,117800.0,117790.0,1.79361817]
[1752866528423,0.00069906,117800.0,117790.0,0.68609625]
[1752866528634,0.00069906,117800.0,117790.0,1.29327721]
[1752866529073,0.00069906,117800.0,117790.0,1.27735721]
[1752866529302,0.00069906,117800.0,117790.0,1.32432951]
[1752866530238,0.00069906,117800.0,117790.0,0.83998855]
[1752866530447,0.00069906,117800.0,117790.0,1.18500951]
[1752866530663,0.00069906,117800.0,117790.0,1.32468951]
[1752866531100,0.00069906,117800.0,117790.0,1.82523047]
[1752866531748,0.00069906,117800.0,117790.0,0.90654855]
[1752866531958,0.00069906,117800.0,117790.0,1.39088951]
[1752866533790,0.00069906,117800.0,117790.0,0.90654855]
[1752866534005,0.00069906,117800.0,117790.0,1.25120951]
[1752866534225,0.00069906,117800.0,117790.0,1.34392721]
[1752866534437,0.00069906,117800.0,117790.0,1.35972721]
[1752866535062,0.00069906,117800.0,117790.0,1.84406817]
[1752866535266,0.00069906,117800.0,117790.0,1.35972721]
[1752866535483,0.00069906,117800.0,117790.0,1.44548683]
[1752866535892,0.00069906,117800.0,117790.0,0.96114587]
[1752866536092,0.00069906,117800.0,117790.0,1.44548683]
[1752866537884,0.00069906,117800.0,117790.0,0.96114587]
[1752866538096,0.00069906,117800.0,117790.0,1.44548683]
[1752866538313,0.00069906,117800.0,117790.0,1.46002768]
[1752866538543,1e-08,117800.0,117790.0,1.94436864]
[1752866538765,1e-08,117800.0,117790.0,1.99436864]
[1752866538985,1e-08,117820.0,117810.0,1.09220462]
[1752866539219,0.0001497,117820.0,117810.0,1.26546452]
[1752866539441,0.0001497,117820.0,117810.0,0.92104356]
[1752866539654,0.0001497,117820.0,117810.0,1.43307152]
[1752866539903,0.0001497,117820.0,117810.0,1.45840355]
[1752866540543,0.0001497,117820.0,117810.0,1.45940355]
[1752866540754,0.0001497,117820.0,117810.0,1.45936355]
[1752866541624,0.0001497,117820.0,117810.0,1.45836355]
[1752866542044,0.0001497,117820.0,117810.0,0.97414259]
[1752866542265,0.0001497,117820.0,117810.0,1.45848355]
[1752866542701,0.0001497,117820.0,117810.0,1.31848355]
[1752866542921,0.0001497,117820.0,117810.0,1.46044355]
[1752866543157,0.4411654,117810.0,117800.0,0.67109707]
[1752866543376,0.4411654,117810.0,117800.0,0.32675614]
[1752866543618,0.43268021,117810.0,117800.0,0.64981699]
[1752866543870,0.43268021,117810.0,117800.0,0.26310721]
[1752866544094,0.91702117,117810.0,117800.0,0.32679643]
[1752866544317,0.0998544,117800.0,117790.0,0.051]
[1752866544536,0.32346684,117800.0,117790.0,0.051]
[1752866544756,0.8078078,117800.0,117790.0,0.1914]
[1752866544942,0.79083024,117800.0,117790.0,0.1914]
[1752866545228,0.99351568,117800.0,117790.0,0.1916]
[1752866545472,0.99351568,117800.0,117790.0,0.19168]
[1752866545763,1.33351568,117800.0,117790.0,0.19172]
[1752866546205,0.95080154,117800.0,117790.0,0.19172]
[1752866546419,0.95080154,117800.0,117790.0,0.14172]
[1752866546640,0.95280154,117800.0,117790.0,0.14172]
[1752866546863,0.95280154,117800.0,117790.0,0.001]
[1752866547085,0.95280154,117800.0,117790.0,0.1408]
[1752866550294,0.95280154,117800.0,117790.0,0.10679948]
[1752866550510,0.13396304,117770.0,117760.0,0.52681993]
[1752866550740,0.14260199,117770.0,117760.0,0.67611134]
[1752866550995,0.1373513,117770.0,117760.0,0.68460268]
[1752866551283,0.15433297,117770.0,117760.0,0.67611134]
[1752866551534,0.70624576,117770.0,117760.0,0.66762027]
[1752866551770,0.24169431,117770.0,117760.0,0.67611168]
[1752866552011,0.24169431,117770.0,117760.0,0.66811948]
[1752866552012,0.22471279,117770.0,117760.0,0.66811948]
[1752866552234,0.61888472,117770.0,117760.0,0.68610237]
[1752866552444,0.61888472,117770.0,117760.0,0.68610244]
[1752866552657,0.79719837,117770.0,117760.0,0.66911948]
[1752866552878,0.78870775,117770.0,117760.0,0.66911941]
[1752866553096,0.61888522,117770.0,117760.0,0.68710244]
[1752866553742,0.78870775,117770.0,117760.0,0.67861096]
[1752866553924,0.78021663,117770.0,117760.0,0.67861096]
[1752866554170,0.61888515,117770.0,117760.0,0.68710237]
[1752866554380,0.7971988,117770.0,117760.0,0.68710237]
[1752866554802,0.40991606,117770.0,117760.0,0.67011941]
[1752866555015,0.79719823,117770.0,117760.0,0.67861089]
[1752866555278,0.79719823,117770.0,117760.0,0.68710244]
[1752866555494,0.79719823,117770.0,117760.0,0.67861096]
[1752866555736,0.79719823,117770.0,117760.0,0.66162778]
[1752866555947,0.78021692,117770.0,117760.0,0.67011941]
[1752866556182,0.84899451,117770.0,117760.0,0.48329906]
[1752866556400,0.84899451,117770.0,117760.0,0.65313601]
[1752866556623,0.84899451,117770.0,117760.0,0.48329906]
[1752866556836,0.84899451,117770.0,117760.0,0.66162778]
[1752866557046,0.84899451,117770.0,117760.0,0.48329906]
[1752866557258,0.84899451,117770.0,117760.0,0.4917909]
[1752866557466,0.84899451,117770.0,117760.0,0.67011962]
[1752866557681,0.86597639,117770.0,117760.0,0.67861117]
[1752866557896,0.13735145,117770.0,117760.0,0.68710251]
[1752866558116,0.60190283,117770.0,117760.0,0.68710251]
[1752866558358,0.61888428,117770.0,117760.0,0.68710251]
[1752866558588,0.62737526,117770.0,117760.0,0.68710251]
[1752866558809,0.61888428,117770.0,117760.0,0.68710251]
[1752866559047,0.62737526,117770.0,117760.0,0.68710251]
[1752866559503,0.61888428,117770.0,117760.0,0.68710251]
[1752866559750,0.61888414,117770.0,117760.0,0.68710251]
[1752866560171,0.58690283,117770.0,117760.0,0.68710251]
[1752866560411,0.05,117770.0,117760.0,0.77464279]
[1752866560833,0.52304236,117770.0,117760.0,0.85191007]
[1752866561042,0.52841236,117770.0,117760.0,0.76615045]
[1752866561470,0.52517236,117770.0,117760.0,0.76615045]
[1752866562127,0.53366298,117770.0,117760.0,0.76615045]
[1752866562354,0.53366291,117770.0,117760.0,0.76611045]
[1752866562808,0.5421536,117770.0,117760.0,0.76611045]
[1752866563269,0.5453936,117770.0,117760.0,0.76611045]
[1752866563685,0.54539353,117770.0,117760.0,0.76611045]
[1752866563902,0.54539353,117770.0,117760.0,0.76511045]
[1752866564087,0.55388429,117770.0,117760.0,0.76511045]
[1752866564222,0.54539353,117770.0,117760.0,0.76511045]
[1752866564437,0.55388436,117770.0,117760.0,0.76411045]
[1752866564648,0.54539353,117770.0,117760.0,0.76411045]